fUSD/lending_fUSD_20250125
["ID","MTS","AMOUNT","RATE_DAILY","PERIOD"]
[350293830,1737773447367,-500.0,0.00016986,2]
[350293831,1737773447376,-500.0,0.00016986,2]
[350293832,1737773447387,-500.0,0.00016986,2]
[350293833,1737773447397,-500.0,0.00016986,2]
[350293834,1737773447407,-500.0,0.00016986,2]
[350293835,1737773447416,-500.0,0.00016986,2]
[350293836,1737773447426,-599.93507666,0.00016986,2]
[350293837,1737773447435,-1449.43,0.00016986,2]
[350293838,1737773447445,-500.0,0.00016986,2]
[350293839,1737773447454,-169.74162681,0.00016986,2]
[350293840,1737773447464,-809.88,0.00016986,2]
[350293841,1737773447474,-596.15431184,0.00016986,2]
[350293842,1737773447484,-500.0,0.00016986,2]
[350293843,1737773447493,-718.32,0.00016986,2]
[350293844,1737773447503,-500.0,0.00016986,2]
[350293845,1737773447512,-500.0,0.00016986,2]
[350293846,1737773447523,-500.0,0.00016986,2]
[350293847,1737773447532,-500.0,0.00016986,2]
[350293848,1737773447542,-1026.27,0.00016986,2]
[350293849,1737773447552,-578.48,0.00016986,2]
[350293850,1737773447563,-519.24311767,0.00016986,2]
[350293851,1737773447574,-2228.61,0.00016986,2]
[350293852,1737773447585,-500.0,0.00016986,2]
[350293853,1737773447595,-635.28665038,0.00016986,2]
[350293854,1737773447606,-571.6,0.00016986,2]
[350293855,1737773447615,-500.0,0.00016986,2]
[350293856,1737773447624,-500.0,0.00016986,2]
[350293857,1737773447635,-155.72,0.00016986,2]
[350293858,1737773447644,-540.75631822,0.00016986,2]
[350293859,1737773447654,-500.0,0.00016986,2]
[350293860,1737773447663,-500.0,0.00016986,2]
[350293861,1737773447673,-241.26494122,0.00016986,2]
[350293862,1737773447683,-500.0,0.00016986,2]
[350293863,1737773447694,-500.0,0.00016986,2]
[350293864,1737773447704,-528.35665481,0.00016986,2]
[350293865,1737773447714,-500.0,0.00016986,2]
[350293866,1737773447723,-500.0,0.00016986,2]
[350293867,1737773447732,-500.0,0.00016986,2]
[350293868,1737773447741,-774.44,0.00016986,2]
[350293869,1737773447751,-844.44,0.00016986,2]
[350293870,1737773447761,-500.0,0.00016986,2]
[350293871,1737773447771,-500.0,0.00016986,2]
[350293872,1737773447781,-500.0,0.00016986,2]
[350293873,1737773447790,-626.321699,0.00016986,2]
[350293874,1737773447800,-500.0,0.00016986,2]
[350293875,1737773447810,-700.66,0.00016986,2]
[350293876,1737773447820,-483.52978139,0.00016986,2]
[350293877,1737773447828,-665.16,0.00016986,2]
[350293878,1737773447838,-523.54417537,0.00016986,2]
[350293879,1737773447847,-500.0,0.00016986,2]
[350293880,1737773447855,-636.38331874,0.00016986,2]
[350293881,1737773447866,-500.0,0.00016986,2]
[350293882,1737773447875,-1163.07,0.00016986,2]
[350293883,1737773447884,-500.0,0.00016986,2]
[350293884,1737773447893,-518.21008142,0.00016986,2]
[350293885,1737773447903,-500.0,0.00016986,2]
[350293886,1737773447914,-552.57,0.00016986,2]
[350293887,1737773447924,-512.57942658,0.00016986,2]
[350293888,1737773447935,-500.0,0.00016986,2]
[350293889,1737773447945,-3203.93,0.00016986,2]
[350293890,1737773447955,-714.55,0.00016986,2]
[350293891,1737773448059,-500.0,0.00016986,2]
[350293892,1737773448070,-1003.08,0.00016986,2]
[350293893,1737773448080,-851.63,0.00016986,2]
[350293894,1737773448090,-679.18,0.00016986,2]
[350293895,1737773448100,-500.0,0.00016986,2]
[350293896,1737773448110,-701.17,0.00016986,2]
[350293897,1737773448121,-543.71,0.00016986,2]
[350293898,1737773448132,-500.0,0.00016986,2]
[350293899,1737773448142,-614.99614345,0.00017077,2]
[350293900,1737773448155,-500.0,0.00017123,2]
[350293901,1737773448168,-500.0,0.00017123,2]
[350293902,1737773448178,-500.0,0.00017123,2]
[350293903,1737773448188,-500.0,0.00017123,2]
[350293904,1737773448199,-500.0,0.00017123,2]
[350293905,1737773448210,-531.35556256,0.00017123,2]
[350293906,1737773448220,-500.0,0.00017123,2]
[350293907,1737773448229,-500.0,0.00017123,2]
[350293908,1737773448240,-500.0,0.00017123,2]
[350293909,1737773448249,-500.0,0.00017123,2]
[350293910,1737773448258,-500.0,0.00017123,2]
[350293911,1737773448269,-500.0,0.00017123,2]
[350293912,1737773448278,-500.0,0.00017123,2]
[350293913,1737773448288,-500.0,0.00017123,2]
[350293914,1737773448299,-500.0,0.00017123,2]
[350293915,1737773448308,-500.0,0.00017123,2]
[350293916,1737773448318,-500.0,0.00017123,2]
[350293917,1737773448328,-500.0,0.00017123,2]
[350293918,1737773448338,-500.0,0.00017123,2]
[350293919,1737773448348,-500.0,0.00017123,2]
[350293920,1737773448357,-500.0,0.00017123,2]
[350293921,1737773448367,-500.0,0.00017123,2]
[350293922,1737773448377,-399.49308085,0.00017123,2]
[350293923,1737773448387,-500.0,0.00017123,2]
[350293924,1737773448397,-520.50850601,0.00017123,2]
[350293925,1737773448407,-619.14555509,0.00017123,2]
[350293926,1737773448417,-500.0,0.00017123,2]
[350293927,1737773448426,-500.0,0.00017123,2]
[350293928,1737773448436,-500.0,0.00017123,2]
[350293929,1737773448446,-500.0,0.00017123,2]
[350293930,1737773448457,-500.0,0.00017123,2]
[350293931,1737773448467,-500.0,0.00017123,2]
[350293932,1737773448478,-500.0,0.00017123,2]
[350293933,1737773448487,-597.01225483,0.00017123,2]
[350293934,1737773448497,-500.0,0.00017123,2]
[350293935,1737773448506,-520.34865349,0.00017123,2]
[350293936,1737773448517,-538.53678131,0.00017123,2]
[350293937,1737773448526,-500.0,0.00017123,2]
[350293938,1737773448536,-500.0,0.00017123,2]
[350293939,1737773448545,-500.0,0.00017123,2]
[350293940,1737773448555,-585.37439495,0.00017123,2]
[350293941,1737773448566,-509.05979799,0.00017123,2]
[350293942,1737773448577,-500.0,0.00017123,2]
[350293943,1737773448587,-571.91624997,0.00017123,2]
[350293944,1737773448597,-500.0,0.00017123,2]
[350293945,1737773448606,-500.0,0.00017123,2]
[350293946,1737773448616,-500.0,0.00017123,2]
[350293947,1737773448625,-500.0,0.00017123,2]
[350293948,1737773448635,-500.0,0.00017123,2]
[350293949,1737773448645,-500.0,0.00017123,2]
[350293950,1737773448661,-500.0,0.00017123,2]
[350293951,1737773448670,-500.0,0.00017123,2]
[350293952,1737773448679,-500.0,0.00017123,2]
[350293953,1737773448689,-500.0,0.00017123,2]
[350293954,1737773448699,-539.64194081,0.00017123,2]
[350293955,1737773448709,-866.74,0.00017123,2]
[350293956,1737773448719,-500.0,0.00017123,2]
[350293957,1737773448729,-500.0,0.00017123,2]
[350293958,1737773448739,-1168.46,0.00017123,2]
[350293959,1737773448749,-1521.17,0.00017123,2]
[350293960,1737773448759,-1565.06,0.00017123,2]
[350293961,1737773448769,-500.0,0.00017123,2]
[350293962,1737773448779,-222.5207294,0.00017123,2]
[350293963,1737773448789,-1243.83,0.00017123,2]
[350293964,1737773448798,-500.0,0.00017123,2]
[350293965,1737773448807,-500.0,0.00017123,2]
[350293966,1737773448817,-500.0,0.00017123,2]
[350293967,1737773448827,-500.0,0.00017123,2]
[350293968,1737773448836,-500.0,0.00017123,2]
[350293969,1737773448846,-500.0,0.00017123,2]
[350293970,1737773448857,-1449.43,0.00017123,2]
[350293971,1737773448866,-500.0,0.00017123,2]
[350293972,1737773448876,-809.88,0.00017123,2]
[350293973,1737773448886,-500.0,0.00017123,2]
[350293974,1737773448896,-718.32,0.00017123,2]
[350293975,1737773448906,-456.16738202,0.00017123,2]
[350293976,1737773448916,-500.0,0.00017123,2]
[350293977,1737773448925,-500.0,0.00017123,2]
[350293978,1737773448935,-500.0,0.00017123,2]
[350293979,1737773448945,-1026.27,0.00017123,2]
[350293980,1737773448955,-578.48,0.00017123,2]
[350293981,1737773448965,-2228.61,0.00017123,2]
[350293982,1737773448977,-500.0,0.00017123,2]
[350293983,1737773448988,-500.0,0.00017123,2]
[350293984,1737773448998,-500.0,0.00017123,2]
[350293985,1737773449008,-500.0,0.00017123,2]
[350293986,1737773449017,-500.0,0.00017123,2]
[350293987,1737773449028,-500.0,0.00017123,2]
[350293988,1737773449038,-500.0,0.00017123,2]
[350293989,1737773449048,-500.0,0.00017123,2]
[350293990,1737773449058,-500.0,0.00017123,2]
[350293991,1737773449072,-500.0,0.00017123,2]
[350293992,1737773449088,-774.44,0.00017123,2]
[350293993,1737773449102,-844.44,0.00017123,2]
[350293994,1737773449116,-521.9420633,0.00017123,2]
[350293995,1737773449129,-522.19184487,0.00017123,2]
[350293996,1737773449145,-500.0,0.00017123,2]
[350293997,1737773449161,-616.01425812,0.00017123,2]
[350293998,1737773449176,-700.66,0.00017123,2]
[350293999,1737773449189,-665.16,0.00017123,2]
[350294000,1737773449201,-500.0,0.00017123,2]
[350294001,1737773449216,-500.0,0.00017123,2]
[350294002,1737773449229,-1163.07,0.00017123,2]
[350294003,1737773449245,-500.0,0.00017123,2]
[350294004,1737773449258,-500.0,0.00017123,2]
[350294005,1737773449274,-552.57,0.00017123,2]
[350294006,1737773449287,-500.0,0.00017123,2]
[350294007,1737773449303,-3203.93,0.00017123,2]
[350294008,1737773449317,-714.55,0.00017123,2]
[350294009,1737773449331,-500.0,0.00017123,2]
[350294010,1737773449343,-1003.08,0.00017123,2]
[350294011,1737773449359,-851.63,0.00017123,2]
[350294012,1737773449373,-679.18,0.00017123,2]
[350294013,1737773449387,-500.0,0.00017123,2]
[350294014,1737773449400,-701.17,0.00017123,2]
[350294015,1737773449411,-543.71,0.00017123,2]
[350294016,1737773449423,-500.0,0.00017123,2]
[350294017,1737773449440,-416.7771028,0.00017141,2]
[350294018,1737773449451,-366.42606917,0.0001716,2]
[350294019,1737773449463,-1215.96,0.00017165,2]
[350294020,1737773449475,-1000.0,0.00017241,2]
[350294021,1737773449488,-170.84407819,0.00017247,2]
[350294022,1737773449502,-500.0,0.0001726,2]
[350294023,1737773449513,-500.0,0.0001726,2]
[350294024,1737773449525,-246.23531029,0.0001726,2]
[350294025,1737773449538,-500.0,0.0001726,2]
[350294026,1737773449549,-443.33974304,0.0001726,2]
[350294027,1737773449561,-526.40590947,0.0001726,2]
[350294028,1737773449572,-517.46368057,0.0001726,2]
[350294029,1737773449585,-500.0,0.0001726,2]
[350294030,1737773449597,-355.56316015,0.0001726,2]
[350294031,1737773449610,-500.0,0.0001726,2]
[350294032,1737773449621,-500.0,0.0001726,2]
[350294033,1737773449634,-500.0,0.0001726,2]
[350294034,1737773449646,-500.0,0.0001726,2]
[350294035,1737773449658,-500.0,0.0001726,2]
[350294036,1737773449671,-500.0,0.0001726,2]
[350294037,1737773449683,-500.0,0.0001726,2]
[350294038,1737773449696,-500.0,0.0001726,2]
[350294039,1737773449708,-500.0,0.0001726,2]
[350294040,1737773449719,-500.0,0.0001726,2]
[350294041,1737773449732,-538.52398958,0.0001726,2]
[350294042,1737773449744,-500.0,0.0001726,2]
[350294043,1737773449757,-500.0,0.0001726,2]
[350294044,1737773449769,-575.31259356,0.0001726,2]
[350294045,1737773449781,-500.0,0.0001726,2]
[350294046,1737773449793,-254.78248718,0.0001726,2]
[350294047,1737773449806,-500.0,0.0001726,2]
[350294048,1737773449818,-287.56852329,0.0001726,2]
[350294049,1737773449830,-500.0,0.0001726,2]
[350294050,1737773449843,-500.0,0.0001726,2]
[350294051,1737773449855,-500.0,0.0001726,2]
[350294052,1737773449867,-500.0,0.0001726,2]
[350294053,1737773449879,-513.2413574,0.0001726,2]
[350294054,1737773449891,-500.0,0.0001726,2]
[350294055,1737773449903,-500.0,0.0001726,2]
[350294056,1737773449915,-374.7913331,0.0001726,2]
[350294057,1737773449929,-500.0,0.0001726,2]
[350294058,1737773449941,-500.0,0.0001726,2]
[350294059,1737773449953,-500.0,0.0001726,2]
[350294060,1737773449965,-500.0,0.0001726,2]
[350294061,1737773449977,-517.4729068,0.0001726,2]
[350294062,1737773449990,-500.0,0.0001726,2]
[350294063,1737773450002,-500.0,0.0001726,2]
[350294064,1737773450015,-866.74,0.0001726,2]
[350294065,1737773450029,-312.49484099,0.0001726,2]
[350294066,1737773450041,-523.41163302,0.0001726,2]
[350294067,1737773450053,-1168.46,0.0001726,2]
[350294068,1737773450064,-1521.17,0.0001726,2]
[350294069,1737773450077,-1565.06,0.0001726,2]
[350294070,1737773450090,-500.0,0.0001726,2]
[350294071,1737773450103,-1243.83,0.0001726,2]
[350294072,1737773450115,-500.0,0.0001726,2]
[350294073,1737773450128,-500.0,0.0001726,2]
[350294074,1737773450140,-622.63916997,0.0001726,2]
[350294075,1737773450151,-500.0,0.0001726,2]
[350294076,1737773450167,-214.37568736,0.0001726,2]
[350294077,1737773450179,-500.0,0.0001726,2]
[350294078,1737773450191,-1449.43,0.0001726,2]
[350294079,1737773450204,-500.0,0.0001726,2]
[350294080,1737773450216,-809.88,0.0001726,2]
[350294081,1737773450227,-500.0,0.0001726,2]
[350294082,1737773450240,-718.32,0.0001726,2]
[350294083,1737773450252,-170.12911826,0.0001726,2]
[350294084,1737773450266,-500.0,0.0001726,2]
[350294085,1737773450279,-500.0,0.0001726,2]
[350294086,1737773450293,-1026.27,0.0001726,2]
[350294087,1737773450305,-578.48,0.0001726,2]
[350294088,1737773450465,-2228.61,0.0001726,2]
[350294089,1737773450480,-500.0,0.0001726,2]
[350294090,1737773450490,-500.0,0.0001726,2]
[350294091,1737773450500,-500.0,0.0001726,2]
[350294092,1737773450509,-500.0,0.0001726,2]
[350294093,1737773450519,-500.0,0.0001726,2]
[350294094,1737773450529,-500.0,0.0001726,2]
[350294095,1737773450539,-500.0,0.0001726,2]
[350294096,1737773450548,-500.0,0.0001726,2]
[350294097,1737773450558,-500.0,0.0001726,2]
[350294098,1737773450567,-530.13908244,0.0001726,2]
[350294099,1737773450578,-774.44,0.0001726,2]
[350294100,1737773450588,-844.44,0.0001726,2]
[350294101,1737773450599,-370.31462428,0.0001726,2]
[350294102,1737773450608,-700.66,0.0001726,2]
[350294103,1737773450618,-665.16,0.0001726,2]
[350294104,1737773450628,-500.0,0.0001726,2]
[350294105,1737773450638,-500.0,0.0001726,2]
[350294106,1737773450647,-1163.07,0.0001726,2]
[350294107,1737773450657,-500.0,0.0001726,2]
[350294108,1737773450667,-500.0,0.0001726,2]
[350294109,1737773450677,-552.57,0.0001726,2]
[350294110,1737773450687,-500.0,0.0001726,2]
[350294111,1737773450696,-3203.93,0.0001726,2]
[350294112,1737773450705,-714.55,0.0001726,2]
[350294113,1737773450715,-500.0,0.0001726,2]
[350294114,1737773450724,-1003.08,0.0001726,2]
[350294115,1737773450734,-851.63,0.0001726,2]
[350294116,1737773450744,-679.18,0.0001726,2]
[350294117,1737773450753,-529.74219747,0.0001726,2]
[350294118,1737773450763,-701.17,0.0001726,2]
[350294119,1737773450773,-543.71,0.0001726,2]
[350294120,1737773450782,-500.0,0.0001726,2]
[350294121,1737773450792,-502.0,0.00017342,2]
[350294122,1737773450801,-416.7771028,0.00017348,2]
[350294123,1737773450811,-253.62776287,0.00017397,2]
[350294124,1737773450821,-500.0,0.00017397,2]
[350294125,1737773450830,-500.0,0.00017397,2]
[350294126,1737773450839,-322.40729577,0.00017397,2]
[350294127,1737773450849,-500.0,0.00017397,2]
[350294128,1737773450858,-500.0,0.00017397,2]
[350294129,1737773450868,-500.0,0.00017397,2]
[350294130,1737773450878,-194.53153608,0.00017397,2]
[350294131,1737773450888,-240.57954237,0.00017397,2]
[350294132,1737773450898,-340.95542574,0.00017397,2]
[350294133,1737773450909,-500.0,0.00017397,2]
[350294134,1737773450919,-500.0,0.00017397,2]
[350294135,1737773450929,-360.84388022,0.00017397,2]
[350294136,1737773450939,-500.0,0.00017397,2]
[350294137,1737773450949,-500.0,0.00017397,2]
[350294138,1737773450958,-500.0,0.00017397,2]
[350294139,1737773450968,-500.0,0.00017397,2]
[350294140,1737773450981,-500.0,0.00017397,2]
[350294141,1737773450991,-500.0,0.00017397,2]
[350294142,1737773451000,-500.0,0.00017397,2]
[350294143,1737773451009,-500.0,0.00017397,2]
[350294144,1737773451019,-500.0,0.00017397,2]
[350294145,1737773451028,-500.0,0.00017397,2]
[350294146,1737773451037,-500.0,0.00017397,2]
[350294147,1737773451047,-580.30325959,0.00017397,2]
[350294148,1737773451056,-524.14804905,0.00017397,2]
[350294149,1737773451065,-500.0,0.00017397,2]
[350294150,1737773451075,-500.0,0.00017397,2]
[350294151,1737773451085,-500.0,0.00017397,2]
[350294152,1737773451095,-500.0,0.00017397,2]
[350294153,1737773451105,-866.74,0.00017397,2]
[350294154,1737773451114,-1168.46,0.00017397,2]
[350294155,1737773451124,-1521.17,0.00017397,2]
[350294156,1737773451134,-1565.06,0.00017397,2]
[350294157,1737773451143,-278.77631032,0.00017397,2]
[350294158,1737773451153,-1243.83,0.00017397,2]
[350294159,1737773451165,-500.0,0.00017397,2]
[350294160,1737773451175,-500.0,0.00017397,2]
[350294161,1737773451184,-500.0,0.00017397,2]
[350294162,1737773451193,-500.0,0.00017397,2]
[350294163,1737773451203,-1449.43,0.00017397,2]
[350294164,1737773451213,-625.95814071,0.00017397,2]
[350294165,1737773451222,-809.88,0.00017397,2]
[350294166,1737773451232,-500.0,0.00017397,2]
[350294167,1737773451242,-718.32,0.00017397,2]
[350294168,1737773451251,-500.0,0.00017397,2]
[350294169,1737773451261,-500.0,0.00017397,2]
[350294170,1737773451271,-1026.27,0.00017397,2]
[350294171,1737773451282,-578.48,0.00017397,2]
[350294172,1737773451293,-2228.61,0.00017397,2]
[350294173,1737773451303,-524.0811455,0.00017397,2]
[350294174,1737773451314,-500.0,0.00017397,2]
[350294175,1737773451325,-500.0,0.00017397,2]
[350294176,1737773451334,-500.0,0.00017397,2]
[350294177,1737773451344,-326.18500343,0.00017397,2]
[350294178,1737773451354,-500.0,0.00017397,2]
[350294179,1737773451363,-500.0,0.00017397,2]
[350294180,1737773451373,-500.0,0.00017397,2]
[350294181,1737773451384,-500.0,0.00017397,2]
[350294182,1737773451394,-774.44,0.00017397,2]
[350294183,1737773451403,-844.44,0.00017397,2]
[350294184,1737773451413,-700.66,0.00017397,2]
[350294185,1737773451423,-665.16,0.00017397,2]
[350294186,1737773451434,-199.05111038,0.00017397,2]
[350294187,1737773451443,-500.0,0.00017397,2]
[350294188,1737773451452,-1163.07,0.00017397,2]
[350294189,1737773451462,-500.0,0.00017397,2]
[350294190,1737773451472,-500.0,0.00017397,2]
[350294191,1737773451483,-552.57,0.00017397,2]
[350294192,1737773451492,-500.0,0.00017397,2]
[350294193,1737773451502,-3203.93,0.00017397,2]
[350294194,1737773451512,-714.55,0.00017397,2]
[350294195,1737773451522,-500.0,0.00017397,2]
[350294196,1737773451532,-1003.08,0.00017397,2]
[350294197,1737773451540,-851.63,0.00017397,2]
[350294198,1737773451550,-679.18,0.00017397,2]
[350294199,1737773451559,-701.17,0.00017397,2]
[350294200,1737773451570,-543.71,0.00017397,2]
[350294201,1737773451579,-304.04898101,0.00017397,2]
[350294202,1737773451589,-500.0,0.00017534,2]
[350294203,1737773451599,-500.0,0.00017534,2]
[350294204,1737773451608,-159.51813279,0.00017534,2]
[350294205,1737773451619,-490.38260851,0.00017534,2]
[350294206,1737773451629,-500.0,0.00017534,2]
[350294207,1737773451639,-494.59156363,0.00017534,2]
[350294208,1737773451649,-500.0,0.00017534,2]
[350294209,1737773451659,-261.87532833,0.00017534,2]
[350294210,1737773451668,-358.71401151,0.00017534,2]
[350294211,1737773451678,-500.0,0.00017534,2]
[350294212,1737773451687,-500.0,0.00017534,2]
[350294213,1737773451697,-162.10064222,0.00017534,2]
[350294214,1737773451706,-178.3266736,0.00017534,2]
[350294215,1737773451715,-566.80644322,0.00017534,2]
[350294216,1737773451725,-518.84188549,0.00017534,2]
[350294217,1737773451735,-500.0,0.00017534,2]
[350294218,1737773451744,-500.0,0.00017534,2]
[350294219,1737773451754,-500.0,0.00017534,2]
[350294220,1737773451764,-500.0,0.00017534,2]
[350294221,1737773451773,-500.0,0.00017534,2]
[350294222,1737773451783,-500.0,0.00017534,2]
[350294223,1737773451792,-500.0,0.00017534,2]
[350294224,1737773451802,-866.74,0.00017534,2]
[350294225,1737773451812,-1168.46,0.00017534,2]
[350294226,1737773451822,-1521.17,0.00017534,2]
[350294227,1737773451832,-1565.06,0.00017534,2]
[350294228,1737773451842,-1243.83,0.00017534,2]
[350294229,1737773451851,-500.0,0.00017534,2]
[350294230,1737773451862,-500.0,0.00017534,2]
[350294231,1737773451872,-385.06647298,0.00017534,2]
[350294232,1737773451881,-500.0,0.00017534,2]
[350294233,1737773451892,-1449.43,0.00017534,2]
[350294234,1737773451902,-809.88,0.00017534,2]
[350294235,1737773451911,-500.0,0.00017534,2]
[350294236,1737773451921,-718.32,0.00017534,2]
[350294237,1737773451931,-500.0,0.00017534,2]
[350294238,1737773451941,-500.0,0.00017534,2]
[350294239,1737773451950,-1026.27,0.00017534,2]
[350294240,1737773451960,-578.48,0.00017534,2]
[350294241,1737773451970,-2228.61,0.00017534,2]
[350294242,1737773451980,-305.92975024,0.00017534,2]
[350294243,1737773451990,-500.0,0.00017534,2]
[350294244,1737773451999,-500.0,0.00017534,2]
[350294245,1737773452009,-500.0,0.00017534,2]
[350294246,1737773452019,-500.0,0.00017534,2]
[350294247,1737773452029,-500.0,0.00017534,2]
[350294248,1737773452038,-500.0,0.00017534,2]
[350294249,1737773452048,-774.44,0.00017534,2]
[350294250,1737773452058,-844.44,0.00017534,2]
[350294251,1737773452067,-700.66,0.00017534,2]
[350294252,1737773452078,-665.16,0.00017534,2]
[350294253,1737773452088,-500.0,0.00017534,2]
[350294254,1737773452098,-1163.07,0.00017534,2]
[350294255,1737773452108,-500.0,0.00017534,2]
[350294256,1737773452118,-500.0,0.00017534,2]
[350294257,1737773452127,-552.57,0.00017534,2]
[350294258,1737773452137,-500.0,0.00017534,2]
[350294259,1737773452147,-3203.93,0.00017534,2]
[350294260,1737773452159,-714.55,0.00017534,2]
[350294261,1737773452170,-500.0,0.00017534,2]
[350294262,1737773452179,-1003.08,0.00017534,2]
[350294263,1737773452189,-851.63,0.00017534,2]
[350294264,1737773452199,-679.18,0.00017534,2]
[350294265,1737773452208,-701.17,0.00017534,2]
[350294266,1737773452217,-543.71,0.00017534,2]
[350294267,1737773452226,-416.7771028,0.00017555,2]
[350294268,1737773452237,-24975.95891181,0.00017574,2]
[350294269,1737773452247,-607.84981721,0.00017671,2]
[350294270,1737773452257,-500.0,0.00017671,2]
[350294271,1737773452266,-296.16,0.00017671,2]
[350294272,1737773452275,-500.0,0.00017671,2]
[350294273,1737773452285,-603.38406007,0.00017671,2]
[350294274,1737773452294,-620.31,0.00017671,2]
[350294275,1737773452304,-239.36045211,0.00017671,2]
[350294276,1737773452313,-500.0,0.00017671,2]
[350294277,1737773452323,-542.81837452,0.00017671,2]
[350294278,1737773452333,-500.0,0.00017671,2]
[350294279,1737773452344,-500.0,0.00017671,2]
[350294280,1737773452353,-500.0,0.00017671,2]
[350294281,1737773452363,-500.0,0.00017671,2]
[350294282,1737773452373,-866.74,0.00017671,2]
[350294283,1737773452384,-1168.46,0.00017671,2]
[350294284,1737773452394,-1521.17,0.00017671,2]
[350294285,1737773452403,-1565.06,0.00017671,2]
[350294286,1737773452413,-1243.83,0.00017671,2]
[350294287,1737773452423,-500.0,0.00017671,2]
[350294288,1737773452434,-500.0,0.00017671,2]
[350294289,1737773452444,-500.0,0.00017671,2]
[350294290,1737773452454,-1449.43,0.00017671,2]
[350294291,1737773452464,-809.88,0.00017671,2]
[350294292,1737773452474,-436.25790721,0.00017671,2]
[350294293,1737773452485,-718.32,0.00017671,2]
[350294294,1737773452496,-500.0,0.00017671,2]
[350294295,1737773452506,-500.0,0.00017671,2]
[350294296,1737773452516,-1026.27,0.00017671,2]
[350294297,1737773452526,-578.48,0.00017671,2]
[350294298,1737773452537,-2228.61,0.00017671,2]
[350294299,1737773452547,-500.0,0.00017671,2]
[350294300,1737773452556,-500.0,0.00017671,2]
[350294301,1737773452566,-462.32845637,0.00017671,2]
[350294302,1737773452575,-500.0,0.00017671,2]
[350294303,1737773452585,-500.0,0.00017671,2]
[350294304,1737773452594,-500.0,0.00017671,2]
[350294305,1737773452603,-774.44,0.00017671,2]
[350294306,1737773452614,-844.44,0.00017671,2]
[350294307,1737773452623,-700.66,0.00017671,2]
[350294308,1737773452633,-665.16,0.00017671,2]
[350294309,1737773452643,-500.0,0.00017671,2]
[350294310,1737773452653,-1163.07,0.00017671,2]
[350294311,1737773452663,-500.0,0.00017671,2]
[350294312,1737773452672,-500.0,0.00017671,2]
[350294313,1737773452682,-552.57,0.00017671,2]
[350294314,1737773452691,-500.0,0.00017671,2]
[350294315,1737773452701,-3203.93,0.00017671,2]
[350294316,1737773452710,-714.55,0.00017671,2]
[350294317,1737773452720,-500.0,0.00017671,2]
[350294318,1737773452730,-1003.08,0.00017671,2]
[350294319,1737773452739,-851.63,0.00017671,2]
[350294320,1737773452749,-679.18,0.00017671,2]
[350294321,1737773452758,-701.17,0.00017671,2]
[350294322,1737773452769,-543.71,0.00017671,2]
[350294323,1737773452779,-416.7771028,0.00017762,2]
[350294324,1737773452788,-500.0,0.00017807,2]
[350294325,1737773452798,-500.0,0.00017808,2]
[350294326,1737773452808,-155.25,0.00017808,2]
[350294327,1737773452817,-500.0,0.00017808,2]
[350294328,1737773452826,-500.0,0.00017808,2]
[350294329,1737773452835,-500.0,0.00017808,2]